fUSD/lending_fUSD_20250215
["ID","MTS","AMOUNT","RATE_DAILY","PERIOD"]
[353137430,1739593859229,-557.82,0.00011244,2]
[353137431,1739593859239,-500.0,0.00011244,2]
[353137432,1739593859249,-432.28,0.00011244,2]
[353137433,1739593859260,-500.0,0.00011244,2]
[353137434,1739593859270,-500.0,0.00011244,2]
[353137435,1739593859280,-500.0,0.00011244,2]
[353137436,1739593859289,-500.0,0.00011244,2]
[353137437,1739593859300,-500.0,0.00011244,2]
[353137438,1739593859310,-609.2916446,0.00011244,2]
[353137439,1739593859320,-500.0,0.00011244,2]
[353137440,1739593859331,-293.67,0.00011244,2]
[353137441,1739593859340,-235.08,0.00011244,2]
[353137442,1739593859350,-500.0,0.00011244,2]
[353137443,1739593859360,-545.88,0.00011244,2]
[353137444,1739593859369,-500.0,0.00011244,2]
[353137445,1739593859379,-500.0,0.00011244,2]
[353137446,1739593859389,-500.0,0.00011244,2]
[353137447,1739593859399,-500.0,0.00011244,2]
[353137448,1739593859410,-500.0,0.00011244,2]
[353137449,1739593859419,-500.0,0.00011244,2]
[353137450,1739593859429,-500.0,0.00011244,2]
[353137451,1739593859441,-500.0,0.00011244,2]
[353137452,1739593859453,-500.0,0.00011244,2]
[353137453,1739593859468,-1584.78,0.00011244,2]
[353137454,1739593859482,-500.0,0.00011244,2]
[353137455,1739593859496,-500.0,0.00011244,2]
[353137456,1739593859509,-632.58,0.00011244,2]
[353137457,1739593859523,-500.0,0.00011244,2]
[353137458,1739593859535,-500.0,0.00011244,2]
[353137459,1739593859549,-938.72,0.00011244,2]
[353137460,1739593859564,-253.26925516,0.00011244,2]
[353137461,1739593859576,-500.0,0.00011244,2]
[353137462,1739593859589,-500.0,0.00011244,2]
[353137463,1739593859603,-500.0,0.00011244,2]
[353137464,1739593859617,-500.0,0.00011244,2]
[353137465,1739593859631,-500.0,0.00011244,2]
[353137466,1739593859643,-500.0,0.00011244,2]
[353137467,1739593859656,-500.0,0.00011244,2]
[353137468,1739593859669,-500.0,0.00011244,2]
[353137469,1739593859680,-500.0,0.00011244,2]
[353137470,1739593859691,-500.0,0.00011244,2]
[353137471,1739593859703,-1833.439,0.0001126,2]
[353137472,1739593859716,-1272.501,0.0001126,2]
[353137473,1739593859729,-3101.121,0.0001126,2]
[353137474,1739593859742,-910.69,0.0001126,2]
[353137475,1739593859754,-787.0,0.0001126,2]
[353137476,1739593859767,-4036.804,0.0001126,2]
[353137477,1739593859780,-541.903,0.0001126,2]
[353137478,1739593859794,-1279.16,0.0001126,2]
[353137479,1739593859806,-151.0,0.0001126,2]
[353137480,1739593859820,-2030.736,0.0001126,2]
[353137481,1739593859833,-3832.104,0.0001126,2]
[353137482,1739593859847,-150.0,0.0001126,2]
[353137483,1739593859861,-564.459,0.0001126,2]
[353137484,1739593859874,-620.95,0.00011277,2]
[353137485,1739593859888,-323.9048957,0.00011279,2]
[353137486,1739593859900,-629.22767161,0.00011281,2]
[353137487,1739593859914,-500.0,0.00011287,2]
[353137488,1739593859926,-500.0,0.00011287,2]
[353137489,1739593859938,-748.21,0.00011287,2]
[353137490,1739593859951,-4000.0,0.00011287,2]
[353137491,1739593859961,-8657.7215968,0.00011289,2]
[353137492,1739593859973,-2905.4211227,0.00011297,2]
[353137493,1739593859986,-163.22016653,0.00011307,2]
[353137494,1739593859999,-284.09263914,0.00011309,2]
[353137495,1739593860013,-202.24389358,0.00011313,2]
[353137496,1739593860025,-205.5,0.00011313,2]
[353137497,1739593860037,-539.98,0.00011323,2]
[353137498,1739593860049,-500.0,0.00011323,2]
[353137499,1739593860061,-590.51,0.00011323,2]
[353137500,1739593860073,-500.0,0.00011323,2]
[353137501,1739593860084,-551.48,0.00011323,2]
[353137502,1739593860096,-500.0,0.00011323,2]
[353137503,1739593860107,-500.0,0.00011323,2]
[353137504,1739593860120,-535.16,0.00011323,2]
[353137505,1739593860135,-500.0,0.00011323,2]
[353137506,1739593860148,-500.0,0.00011323,2]
[353137507,1739593860159,-500.0,0.00011323,2]
[353137508,1739593860171,-300.0,0.00011323,2]
[353137509,1739593860181,-500.0,0.00011323,2]
[353137510,1739593860192,-500.0,0.00011323,2]
[353137511,1739593860204,-500.0,0.00011323,2]
[353137512,1739593860217,-500.0,0.00011323,2]
[353137513,1739593860231,-424.24717095,0.00011323,2]
[353137514,1739593860244,-518.66,0.00011323,2]
[353137515,1739593860256,-500.0,0.00011323,2]
[353137516,1739593860267,-506.4,0.00011323,2]
[353137517,1739593860278,-500.0,0.00011323,2]
[353137518,1739593860289,-500.0,0.00011323,2]
[353137519,1739593860300,-517.38,0.00011323,2]
[353137520,1739593860313,-500.0,0.00011323,2]
[353137521,1739593860325,-703.86,0.00011323,2]
[353137522,1739593860336,-500.0,0.00011323,2]
[353137523,1739593860347,-500.0,0.00011323,2]
[353137524,1739593860359,-500.0,0.00011323,2]
[353137525,1739593860370,-638.06,0.00011323,2]
[353137526,1739593860382,-500.0,0.00011323,2]
[353137527,1739593860394,-500.0,0.00011323,2]
[353137528,1739593860405,-623.24,0.00011323,2]
[353137529,1739593860417,-500.0,0.00011323,2]
[353137530,1739593860428,-500.0,0.00011323,2]
[353137531,1739593860439,-649.63,0.00011323,2]
[353137532,1739593860453,-717.18,0.00011323,2]
[353137533,1739593860464,-311.05,0.00011323,2]
[353137534,1739593860476,-500.0,0.00011323,2]
[353137535,1739593860488,-500.0,0.00011323,2]
[353137536,1739593860500,-627.3,0.00011323,2]
[353137537,1739593860515,-670.63,0.00011323,2]
[353137538,1739593860527,-538.06,0.00011323,2]
[353137539,1739593860538,-500.0,0.00011323,2]
[353137540,1739593860552,-664.48,0.00011323,2]
[353137541,1739593860564,-500.0,0.00011323,2]
[353137542,1739593860577,-713.61,0.00011323,2]
[353137543,1739593860590,-907.73,0.00011323,2]
[353137544,1739593860601,-500.0,0.00011323,2]
[353137545,1739593860613,-500.0,0.00011323,2]
[353137546,1739593860625,-629.8,0.00011323,2]
[353137547,1739593860637,-1129.23,0.00011323,2]
[353137548,1739593860648,-627.99,0.00011323,2]
[353137549,1739593860660,-509.07,0.00011323,2]
[353137550,1739593860672,-997.57,0.00011323,2]
[353137551,1739593860683,-1290.21,0.00011323,2]
[353137552,1739593860694,-515.72,0.00011323,2]
[353137553,1739593860705,-517.65,0.00011323,2]
[353137554,1739593860716,-569.53,0.00011323,2]
[353137555,1739593860728,-1019.14,0.00011323,2]
[353137556,1739593860739,-576.25,0.00011323,2]
[353137557,1739593860750,-1550.29,0.00011323,2]
[353137558,1739593860761,-634.48,0.00011323,2]
[353137559,1739593860773,-740.86,0.00011323,2]
[353137560,1739593860784,-950.97,0.00011323,2]
[353137561,1739593860796,-500.0,0.00011323,2]
[353137562,1739593860807,-500.0,0.00011323,2]
[353137563,1739593860820,-1068.34,0.00011323,2]
[353137564,1739593860831,-1108.56,0.00011323,2]
[353137565,1739593860842,-527.72,0.00011323,2]
[353137566,1739593860858,-944.97,0.00011323,2]
[353137567,1739593860868,-1053.33,0.00011323,2]
[353137568,1739593860880,-2275.7,0.00011323,2]
[353137569,1739593860892,-982.57,0.00011323,2]
[353137570,1739593860903,-500.0,0.00011323,2]
[353137571,1739593860915,-500.0,0.00011323,2]
[353137572,1739593860927,-828.77,0.00011323,2]
[353137573,1739593860939,-986.44,0.00011323,2]
[353137574,1739593860950,-1285.66,0.00011323,2]
[353137575,1739593860961,-500.0,0.00011323,2]
[353137576,1739593860973,-945.07,0.00011323,2]
[353137577,1739593860984,-1414.18,0.00011323,2]
[353137578,1739593860996,-873.52,0.00011323,2]
[353137579,1739593861007,-920.09,0.00011323,2]
[353137580,1739593861019,-2541.83,0.00011323,2]
[353137581,1739593861031,-1295.6,0.00011323,2]
[353137582,1739593861042,-500.0,0.00011323,2]
[353137583,1739593861053,-1146.51,0.00011323,2]
[353137584,1739593861064,-682.81,0.00011323,2]
[353137585,1739593861075,-1245.83,0.00011323,2]
[353137586,1739593861087,-558.71,0.00011323,2]
[353137587,1739593861098,-725.93,0.00011323,2]
[353137588,1739593861109,-766.38,0.00011323,2]
[353137589,1739593861120,-500.0,0.00011323,2]
[353137590,1739593861132,-517.84,0.00011323,2]
[353137591,1739593861143,-500.0,0.00011323,2]
[353137592,1739593861154,-1572.6,0.00011323,2]
[353137593,1739593861166,-500.0,0.00011323,2]
[353137594,1739593861178,-897.07,0.00011323,2]
[353137595,1739593861190,-500.0,0.00011323,2]
[353137596,1739593861201,-1839.81,0.00011323,2]
[353137597,1739593861212,-963.56,0.00011323,2]
[353137598,1739593861223,-583.4,0.00011323,2]
[353137599,1739593861235,-500.0,0.00011323,2]
[353137600,1739593861247,-859.29,0.00011323,2]
[353137601,1739593861260,-500.0,0.00011323,2]
[353137602,1739593861271,-500.0,0.00011323,2]
[353137603,1739593861282,-726.12,0.00011323,2]
[353137604,1739593861294,-601.15,0.00011323,2]
[353137605,1739593861306,-618.5,0.00011323,2]
[353137606,1739593861317,-500.0,0.00011323,2]
[353137607,1739593861329,-1111.54,0.00011323,2]
[353137608,1739593861340,-500.0,0.00011324,2]
[353137609,1739593861351,-701.16,0.00011324,2]
[353137610,1739593861363,-500.0,0.00011324,2]
[353137611,1739593861375,-500.0,0.00011324,2]
[353137612,1739593861387,-837.21,0.00011324,2]
[353137613,1739593861398,-500.0,0.00011324,2]
[353137614,1739593861410,-500.0,0.00011324,2]
[353137615,1739593861421,-500.0,0.00011324,2]
[353137616,1739593861433,-500.0,0.00011324,2]
[353137617,1739593861445,-603.94,0.00011324,2]
[353137618,1739593861456,-500.0,0.00011324,2]
[353137619,1739593861468,-500.0,0.00011324,2]
[353137620,1739593861480,-500.0,0.00011324,2]
[353137621,1739593861491,-253.6692991,0.00011324,2]
[353137622,1739593861503,-500.0,0.00011324,2]
[353137623,1739593861518,-689.49,0.00011324,2]
[353137624,1739593861529,-500.0,0.00011324,2]
[353137625,1739593861540,-606.28,0.00011324,2]
[353137626,1739593861551,-500.0,0.00011324,2]
[353137627,1739593861563,-546.69,0.00011324,2]
[353137628,1739593861575,-500.0,0.00011324,2]
[353137629,1739593861586,-500.0,0.00011324,2]
[353137630,1739593861597,-500.0,0.00011324,2]
[353137631,1739593861608,-500.0,0.00011324,2]
[353137632,1739593861619,-500.0,0.00011324,2]
[353137633,1739593861630,-722.52,0.00011324,2]
[353137634,1739593861641,-500.0,0.00011324,2]
[353137635,1739593861652,-500.0,0.00011324,2]
[353137636,1739593861663,-500.0,0.00011324,2]
[353137637,1739593861674,-500.0,0.00011324,2]
[353137638,1739593861685,-500.0,0.00011324,2]
[353137639,1739593861698,-500.0,0.00011324,2]
[353137640,1739593861708,-500.0,0.00011324,2]
[353137641,1739593861722,-500.0,0.00011324,2]
[353137642,1739593861733,-500.0,0.00011324,2]
[353137643,1739593861744,-548.7,0.00011324,2]
[353137644,1739593861755,-500.0,0.00011324,2]
[353137645,1739593861766,-825.31,0.00011324,2]
[353137646,1739593861777,-504.5,0.00011324,2]
[353137647,1739593861787,-500.0,0.00011324,2]
[353137648,1739593861798,-500.0,0.00011324,2]
[353137649,1739593861809,-500.0,0.00011324,2]
[353137650,1739593861820,-500.0,0.00011324,2]
[353137651,1739593861831,-500.0,0.00011324,2]
[353137652,1739593861842,-631.45,0.00011324,2]
[353137653,1739593861853,-523.67,0.00011324,2]
[353137654,1739593861864,-627.76,0.00011324,2]
[353137655,1739593861875,-599.75,0.00011324,2]
[353137656,1739593861886,-876.51,0.00011324,2]
[353137657,1739593861897,-500.0,0.00011324,2]
[353137658,1739593861908,-1025.65,0.00011324,2]
[353137659,1739593861919,-500.0,0.00011324,2]
[353137660,1739593861930,-500.0,0.00011324,2]
[353137661,1739593861941,-500.0,0.00011324,2]
[353137662,1739593861951,-460.53,0.00011324,2]
[353137663,1739593861962,-500.0,0.00011324,2]
[353137664,1739593861973,-740.81,0.00011324,2]
[353137665,1739593861984,-500.0,0.00011324,2]
[353137666,1739593861995,-838.6,0.00011324,2]
[353137667,1739593862006,-582.559622,0.00011324,2]
[353137668,1739593862016,-740.5,0.00011324,2]
[353137669,1739593862027,-500.0,0.00011324,2]
[353137670,1739593862038,-742.28,0.00011324,2]
[353137671,1739593862048,-500.0,0.00011324,2]
[353137672,1739593862059,-1376.6,0.00011324,2]
[353137673,1739593862071,-633.18,0.00011324,2]
[353137674,1739593862081,-555.04,0.00011324,2]
[353137675,1739593862092,-976.16,0.00011324,2]
[353137676,1739593862103,-500.0,0.00011324,2]
[353137677,1739593862113,-531.86,0.00011324,2]
[353137678,1739593862124,-1565.45,0.00011324,2]
[353137679,1739593862135,-1298.92,0.00011324,2]
[353137680,1739593862146,-943.37,0.00011324,2]
[353137681,1739593862157,-628.53,0.00011324,2]
[353137682,1739593862169,-1055.91,0.00011324,2]
[353137683,1739593862180,-500.0,0.00011324,2]
[353137684,1739593862191,-515.13508,0.00011324,2]
[353137685,1739593862202,-878.08,0.00011324,2]
[353137686,1739593862213,-589.36692784,0.00011324,2]
[353137687,1739593862225,-1036.5,0.00011324,2]
[353137688,1739593862235,-500.0,0.00011324,2]
[353137689,1739593862246,-500.0,0.00011324,2]
[353137690,1739593862257,-1228.85,0.00011324,2]
[353137691,1739593862268,-1315.67,0.00011324,2]
[353137692,1739593862279,-772.03,0.00011324,2]
[353137693,1739593862290,-1469.47,0.00011324,2]
[353137694,1739593862300,-500.0,0.00011324,2]
[353137695,1739593862311,-5419.81,0.00011324,2]
[353137696,1739593862323,-3773.37,0.00011324,2]
[353137697,1739593862334,-835.28,0.00011324,2]
[353137698,1739593862346,-500.0,0.00011324,2]
[353137699,1739593862356,-500.0,0.00011324,2]
[353137700,1739593862367,-1039.68,0.00011324,2]
[353137701,1739593862378,-915.3,0.00011324,2]
[353137702,1739593862392,-772.32,0.00011324,2]
[353137703,1739593862402,-1220.64,0.00011324,2]
[353137704,1739593862413,-500.0,0.00011324,2]
[353137705,1739593862424,-907.63,0.00011324,2]
[353137706,1739593862435,-1560.12,0.00011324,2]
[353137707,1739593862447,-699.85,0.00011324,2]
[353137708,1739593862459,-670.15,0.00011324,2]
[353137709,1739593862470,-1432.47,0.00011324,2]
[353137710,1739593862481,-500.0,0.00011324,2]
[353137711,1739593862492,-1315.69,0.00011324,2]
[353137712,1739593862503,-1251.67,0.00011324,2]
[353137713,1739593862517,-3544.78,0.00011324,2]
[353137714,1739593862528,-1916.85,0.00011324,2]
[353137715,1739593862539,-802.07,0.00011324,2]
[353137716,1739593862550,-500.0,0.00011324,2]
[353137717,1739593862561,-803.9,0.00011324,2]
[353137718,1739593862572,-951.13,0.00011324,2]
[353137719,1739593862584,-1696.23,0.00011324,2]
[353137720,1739593862595,-783.89,0.00011324,2]
[353137721,1739593862606,-1099.6,0.00011324,2]
[353137722,1739593862998,-567.02,0.00011324,2]
[353137723,1739593863020,-1145.2,0.00011324,2]
[353137724,1739593863029,-1497.05,0.00011324,2]
[353137725,1739593863039,-500.0,0.00011324,2]
[353137726,1739593863048,-1000.0,0.00011324,2]
[353137727,1739593863058,-551.89,0.00011325,2]
[353137728,1739593863067,-777.3,0.00011325,2]
[353137729,1739593863077,-526.21,0.00011325,2]
[353137730,1739593863087,-206.9,0.00011325,2]
[353137731,1739593863096,-500.0,0.00011325,2]
[353137732,1739593863106,-707.69,0.00011325,2]
[353137733,1739593863116,-500.0,0.00011325,2]
[353137734,1739593863125,-500.0,0.00011325,2]
[353137735,1739593863135,-500.0,0.00011325,2]
[353137736,1739593863144,-211.86,0.00011325,2]
[353137737,1739593863154,-500.0,0.00011325,2]
[353137738,1739593863164,-151.0,0.00011325,2]
[353137739,1739593863174,-151.0,0.00011325,2]
[353137740,1739593863184,-500.0,0.00011326,2]
[353137741,1739593863194,-500.0,0.00011326,2]
[353137742,1739593863204,-619.87142595,0.00011326,2]
[353137743,1739593863213,-500.0,0.00011326,2]
[353137744,1739593863223,-500.0,0.00011326,2]
[353137745,1739593863232,-500.0,0.00011326,2]
[353137746,1739593863243,-500.0,0.00011326,2]
[353137747,1739593863252,-500.0,0.00011326,2]
[353137748,1739593863262,-500.0,0.00011326,2]
[353137749,1739593863271,-500.0,0.00011326,2]
[353137750,1739593863282,-500.0,0.00011326,2]
[353137751,1739593863291,-500.0,0.00011326,2]
[353137752,1739593863301,-500.0,0.00011326,2]
[353137753,1739593863312,-500.0,0.00011326,2]
[353137754,1739593863325,-500.0,0.00011326,2]
[353137755,1739593863335,-454.91768765,0.00011326,2]
[353137756,1739593863345,-500.0,0.00011326,2]
[353137757,1739593863355,-500.0,0.00011326,2]
[353137758,1739593863365,-624.62,0.00011326,2]
[353137759,1739593863375,-500.0,0.00011326,2]
[353137760,1739593863386,-500.0,0.00011326,2]
[353137761,1739593863396,-501.71,0.00011326,2]
[353137762,1739593863405,-500.0,0.00011326,2]
[353137763,1739593863415,-500.0,0.00011326,2]
[353137764,1739593863426,-253.12,0.00011326,2]
[353137765,1739593863436,-500.0,0.00011326,2]
[353137766,1739593863446,-500.0,0.00011326,2]
[353137767,1739593863456,-500.0,0.00011326,2]
[353137768,1739593863466,-500.0,0.00011326,2]
[353137769,1739593863476,-234.43965737,0.00011326,2]
[353137770,1739593863486,-500.0,0.00011326,2]
[353137771,1739593863496,-500.0,0.00011326,2]
[353137772,1739593863506,-1200.0,0.00011326,2]
[353137773,1739593863522,-500.0,0.00011326,2]
[353137774,1739593863532,-500.0,0.00011326,2]
[353137775,1739593863542,-500.0,0.00011326,2]
[353137776,1739593863552,-500.0,0.00011326,2]
[353137777,1739593863562,-500.0,0.00011326,2]
[353137778,1739593863572,-542.18809571,0.00011326,2]
[353137779,1739593863582,-500.0,0.00011326,2]
[353137780,1739593863593,-557.82,0.00011326,2]
[353137781,1739593863602,-500.0,0.00011326,2]
[353137782,1739593863612,-500.0,0.00011326,2]
[353137783,1739593863622,-500.0,0.00011326,2]
[353137784,1739593863632,-500.0,0.00011326,2]
[353137785,1739593863641,-191.716039,0.00011326,2]
[353137786,1739593863650,-500.0,0.00011326,2]
[353137787,1739593863660,-500.0,0.00011326,2]
[353137788,1739593863671,-500.0,0.00011326,2]
[353137789,1739593863681,-500.0,0.00011326,2]
[353137790,1739593863691,-500.0,0.00011326,2]
[353137791,1739593863701,-500.0,0.00011326,2]
[353137792,1739593863711,-500.0,0.00011326,2]
[353137793,1739593863720,-412.91306123,0.00011326,2]
[353137794,1739593863729,-500.0,0.00011326,2]
[353137795,1739593863739,-500.0,0.00011326,2]
[353137796,1739593863748,-1584.78,0.00011326,2]
[353137797,1739593863758,-500.0,0.00011326,2]
[353137798,1739593863767,-500.0,0.00011326,2]
[353137799,1739593863776,-632.58,0.00011326,2]
[353137800,1739593863785,-500.0,0.00011326,2]
[353137801,1739593863795,-189.28486545,0.00011326,2]
[353137802,1739593863804,-938.72,0.00011326,2]
[353137803,1739593863814,-500.0,0.00011326,2]
[353137804,1739593863825,-500.0,0.00011326,2]
[353137805,1739593863834,-500.0,0.00011326,2]
[353137806,1739593863844,-500.0,0.00011326,2]
[353137807,1739593863853,-500.0,0.00011326,2]
[353137808,1739593863863,-500.0,0.00011326,2]
[353137809,1739593863873,-500.0,0.00011326,2]
[353137810,1739593863882,-500.0,0.00011326,2]
[353137811,1739593863892,-500.0,0.00011326,2]
[353137812,1739593863903,-151.387623,0.00011328,2]
[353137813,1739593863913,-60934.56951565,0.00011336,2]
[353137814,1739593863923,-642.27930173,0.00011368,2]
[353137815,1739593863933,-236.05586494,0.00011369,2]
[353137816,1739593863943,-500.0,0.00011369,2]
[353137817,1739593863952,-748.21,0.00011369,2]
[353137818,1739593863962,-300.0,0.00011405,2]
[353137819,1739593863972,-539.98,0.00011405,2]
[353137820,1739593863982,-500.0,0.00011405,2]
[353137821,1739593863992,-590.51,0.00011405,2]
[353137822,1739593864001,-500.0,0.00011405,2]
[353137823,1739593864011,-551.48,0.00011405,2]
[353137824,1739593864022,-500.0,0.00011405,2]
[353137825,1739593864032,-500.0,0.00011405,2]
[353137826,1739593864042,-535.16,0.00011405,2]
[353137827,1739593864053,-500.0,0.00011405,2]
[353137828,1739593864063,-500.0,0.00011405,2]
[353137829,1739593864074,-500.0,0.00011405,2]
[353137830,1739593864084,-300.0,0.00011405,2]
[353137831,1739593864094,-500.0,0.00011405,2]
[353137832,1739593864105,-485.98350278,0.00011405,2]
[353137833,1739593864114,-500.0,0.00011405,2]
[353137834,1739593864124,-500.0,0.00011405,2]
[353137835,1739593864134,-518.66,0.00011405,2]
[353137836,1739593864144,-500.0,0.00011405,2]
[353137837,1739593864153,-506.4,0.00011405,2]
[353137838,1739593864163,-500.0,0.00011405,2]
[353137839,1739593864172,-500.0,0.00011405,2]
[353137840,1739593864182,-517.38,0.00011405,2]
[353137841,1739593864192,-500.0,0.00011405,2]
[353137842,1739593864202,-703.86,0.00011405,2]
[353137843,1739593864212,-500.0,0.00011405,2]
[353137844,1739593864222,-349.55,0.00011405,2]
[353137845,1739593864232,-253.60183723,0.00011405,2]
[353137846,1739593864242,-638.06,0.00011405,2]
[353137847,1739593864252,-500.0,0.00011405,2]
[353137848,1739593864261,-500.0,0.00011405,2]
[353137849,1739593864272,-623.24,0.00011405,2]
[353137850,1739593864282,-500.0,0.00011405,2]
[353137851,1739593864292,-500.0,0.00011405,2]
[353137852,1739593864302,-649.63,0.00011405,2]
[353137853,1739593864312,-717.18,0.00011405,2]
[353137854,1739593864323,-500.0,0.00011405,2]
[353137855,1739593864332,-546.15683606,0.00011405,2]
[353137856,1739593864342,-627.3,0.00011405,2]
[353137857,1739593864352,-670.63,0.00011405,2]
[353137858,1739593864363,-538.06,0.00011405,2]
[353137859,1739593864373,-500.0,0.00011405,2]
[353137860,1739593864384,-664.48,0.00011405,2]
[353137861,1739593864394,-500.0,0.00011405,2]
[353137862,1739593864404,-713.61,0.00011405,2]
[353137863,1739593864415,-907.73,0.00011405,2]
[353137864,1739593864425,-500.0,0.00011405,2]
[353137865,1739593864434,-500.0,0.00011405,2]
[353137866,1739593864444,-629.8,0.00011405,2]
[353137867,1739593864454,-1129.23,0.00011405,2]
[353137868,1739593864464,-627.99,0.00011405,2]
[353137869,1739593864474,-509.07,0.00011405,2]
[353137870,1739593864484,-997.57,0.00011405,2]
[353137871,1739593864494,-1290.21,0.00011405,2]
[353137872,1739593864505,-515.72,0.00011405,2]
[353137873,1739593864517,-517.65,0.00011405,2]
[353137874,1739593864527,-569.53,0.00011405,2]
[353137875,1739593864537,-1019.14,0.00011405,2]
[353137876,1739593864547,-576.25,0.00011405,2]
[353137877,1739593864558,-1550.29,0.00011405,2]
[353137878,1739593864569,-634.48,0.00011405,2]
[353137879,1739593864579,-740.86,0.00011405,2]
[353137880,1739593864589,-950.97,0.00011405,2]
[353137881,1739593864601,-500.0,0.00011405,2]
[353137882,1739593864612,-500.0,0.00011405,2]
[353137883,1739593864622,-1068.34,0.00011405,2]
[353137884,1739593864632,-1108.56,0.00011405,2]
[353137885,1739593864642,-527.72,0.00011405,2]
[353137886,1739593864651,-944.97,0.00011405,2]
[353137887,1739593864661,-1053.33,0.00011405,2]
[353137888,1739593864670,-2275.7,0.00011405,2]
[353137889,1739593864680,-982.57,0.00011405,2]
[353137890,1739593864690,-500.0,0.00011405,2]
[353137891,1739593864699,-500.0,0.00011405,2]
[353137892,1739593864709,-828.77,0.00011405,2]
[353137893,1739593864718,-1285.66,0.00011405,2]
[353137894,1739593864728,-986.44,0.00011405,2]
[353137895,1739593864738,-500.0,0.00011405,2]
[353137896,1739593864748,-945.07,0.00011405,2]
[353137897,1739593864758,-1414.18,0.00011405,2]
[353137898,1739593864767,-873.52,0.00011405,2]
[353137899,1739593864776,-920.09,0.00011405,2]
[353137900,1739593864786,-2541.83,0.00011405,2]
[353137901,1739593864796,-1295.6,0.00011405,2]
[353137902,1739593864806,-500.0,0.00011405,2]
[353137903,1739593864815,-1146.51,0.00011405,2]
[353137904,1739593864826,-682.81,0.00011405,2]
[353137905,1739593864838,-1245.83,0.00011405,2]
[353137906,1739593864848,-558.71,0.00011405,2]
[353137907,1739593864858,-725.93,0.00011405,2]
[353137908,1739593864868,-766.38,0.00011405,2]
[353137909,1739593864878,-500.0,0.00011405,2]
[353137910,1739593864888,-517.84,0.00011405,2]
[353137911,1739593864898,-500.0,0.00011405,2]
[353137912,1739593864908,-1572.6,0.00011405,2]
[353137913,1739593864917,-500.0,0.00011405,2]
[353137914,1739593864927,-897.07,0.00011405,2]
[353137915,1739593864936,-500.0,0.00011405,2]
[353137916,1739593864946,-1839.81,0.00011405,2]
[353137917,1739593864955,-963.56,0.00011405,2]
[353137918,1739593864964,-583.4,0.00011405,2]
[353137919,1739593864974,-500.0,0.00011405,2]
[353137920,1739593864985,-859.29,0.00011405,2]
[353137921,1739593864995,-500.0,0.00011405,2]
[353137922,1739593865005,-500.0,0.00011405,2]
[353137923,1739593865017,-726.12,0.00011405,2]
[353137924,1739593865027,-601.15,0.00011405,2]
[353137925,1739593865037,-618.5,0.00011405,2]
[353137926,1739593865047,-500.0,0.00011405,2]
[353137927,1739593865056,-1111.54,0.00011405,2]
[353137928,1739593865066,-500.0,0.00011406,2]
[353137929,1739593865076,-701.16,0.00011406,2]